bitfinex/quotes_SOLUSD_20260304
["timestamp","ask_amount","ask_price","bid_price","bid_amount"]
[1772662440485,0.02356489,92.579,92.533,0.8571668]
[1772662442180,0.02504697,92.578,92.533,0.8571668]
[1772662442901,4.0272512,92.57,92.533,0.8571668]
[1772662443194,0.02651202,92.569,92.533,0.8571668]
[1772662443392,0.02651202,92.569,92.535,0.8571668]
[1772662444893,0.02939183,92.576,92.535,0.8571668]
[1772662445092,0.02939183,92.575,92.537,0.8571668]
[1772662446083,0.02939183,92.575,92.52,27.0211846]
[1772662446084,0.02939183,92.575,92.539,0.8571668]
[1772662461600,0.84373038,92.546,92.428,43.27650434]
[1772662461817,0.84373038,92.509,92.471,10.8142012]
[1772662462208,0.84373038,92.509,92.47,0.2]
[1772662462702,0.84373038,92.499,92.47,0.2]
[1772662463612,0.84373038,92.497,92.47,1.01990596]
[1772662463923,37.83865596,92.498,92.47,1.01990596]
[1772662465219,0.84373038,92.497,92.47,1.01990596]
[1772662465619,37.83947413,92.496,92.47,1.01990596]
[1772662465821,0.86597448,92.489,92.443,10.81737257]
[1772662466409,0.86597448,92.489,92.446,10.81703226]
[1772662467301,54.04276146,92.52,92.446,10.81703226]
[1772662467302,0.86597448,92.487,92.446,10.81703226]
[1772662467811,0.86597448,92.487,92.452,0.86563372]
[1772662468315,37.8435655,92.486,92.461,0.86563372]
[1772662468510,0.86597448,92.485,92.461,0.86563372]
[1772662469304,37.8435655,92.486,92.461,0.86563372]
[1772662469707,0.86597448,92.485,92.461,0.86563372]
[1772662470725,37.84438389,92.484,92.461,0.86563372]
[1772662471608,10.81268111,92.484,92.461,0.86563372]
[1772662472129,10.81205734,92.49,92.463,0.86563372]
[1772662472510,0.86597448,92.493,92.463,0.86563372]
[1772662473525,0.86597448,92.506,92.465,0.86563372]
[1772662474102,0.86597448,92.496,92.458,0.86563372]
[1772662474307,0.86597448,92.489,92.46,1.06563372]
[1772662475117,10.81221347,92.488,92.46,1.06563372]
[1772662475317,11.67818795,92.488,92.46,1.06563372]
[1772662476228,27.02902588,92.494,92.46,1.06563372]
[1772662476611,27.02902588,92.494,92.462,0.86563372]
[1772662476816,0.86597448,92.493,92.462,0.86563372]
[1772662479117,0.86597448,92.493,92.461,10.8153708]
[1772662479118,0.86597448,92.5,92.464,0.86563372]
[1772662479335,0.86597448,92.505,92.464,0.86563372]
[1772662481131,0.86597448,92.499,92.464,0.86563372]
[1772662481839,0.86597448,92.495,92.464,0.86563372]
[1772662483241,37.84029233,92.494,92.464,0.86563372]
[1772662483539,38.70626681,92.494,92.464,0.86563372]
[1772662485139,0.86597448,92.493,92.464,0.86563372]
[1772662487930,0.86597448,92.491,92.464,0.86563372]
[1772662490119,4.03449969,92.5,92.464,0.86563372]
[1772662490120,0.75960809,92.489,92.464,0.86563372]
[1772662490742,0.75960809,92.489,92.46,0.2]
[1772662492843,0.75960809,92.487,92.46,0.2]
[1772662493830,0.75960809,92.469,92.44,1e-08]
[1772662494028,135.43991423,92.486,92.44,1e-08]
[1772662494029,0.75960809,92.459,92.44,1e-08]
[1772662496231,10.81572173,92.458,92.44,1e-08]
[1772662496639,10.81349957,92.477,92.44,0.71233313]
[1772662497237,11.57310766,92.477,92.44,0.71233313]
[1772662497434,0.75960809,92.476,92.44,1e-08]
[1772662498842,0.75960809,92.474,92.44,1e-08]
[1772662500338,0.75960809,92.472,92.44,1e-08]
[1772662502455,0.75960809,92.47,92.44,1e-08]
[1772662502657,10.8142012,92.471,92.44,1e-08]
[1772662502957,0.75960809,92.5,92.44,0.67612367]
[1772662503452,0.75960809,92.5,92.45,0.67032902]
[1772662505244,0.75960809,92.498,92.452,0.66460094]
[1772662505445,0.75960809,92.496,92.452,0.66460094]
[1772662505858,0.75960809,92.496,92.44,1e-08]
[1772662506357,0.75960809,92.469,92.425,0.65893865]
[1772662507172,37.85502606,92.458,92.411,0.6533414]
[1772662507375,0.75960809,92.457,92.411,0.6533414]
[1772662508051,0.75960809,92.457,92.414,11.47826444]
[1772662508251,0.75960809,92.457,92.414,0.65743748]
[1772662508458,0.75960809,92.457,92.414,11.47828975]
[1772662508773,37.85502606,92.458,92.414,0.65743748]
[1772662508774,0.75960809,92.446,92.414,0.65743748]
[1772662508981,0.75960809,92.439,92.401,0.64233903]
[1772662509158,0.75960809,92.437,92.401,0.64233903]
[1772662509354,0.75960809,92.437,92.391,0.63693245]
[1772662509556,0.75960809,92.437,92.392,0.63693245]
[1772662509761,0.75960809,92.435,92.392,0.63693245]
[1772662511364,0.75960809,92.433,92.39,0.2]
[1772662511569,0.75960809,92.419,92.39,1e-08]
[1772662511880,0.75960809,92.433,92.391,0.62630486]
[1772662513880,0.75960809,92.431,92.391,0.62630486]
[1772662515785,0.75960809,92.439,92.391,0.62630486]
[1772662515960,0.75960809,92.439,92.393,0.60577234]
[1772662517889,0.75960809,92.437,92.395,0.59585645]
[1772662520478,0.66969593,92.435,92.395,0.59585645]
[1772662520779,0.66969593,92.435,92.396,0.57669894]
[1772662521681,10.24624961,92.436,92.395,10.82301236]
[1772662521889,10.24624961,92.436,92.395,37.88075357]
[1772662523490,0.70020957,92.44,92.39,1e-08]
[1772662523987,0.70020957,92.46,92.39,1e-08]
[1772662526166,0.70020957,92.458,92.39,1e-08]
[1772662529775,37.85543549,92.457,92.39,37.88288776]
[1772662530083,0.70020957,92.456,92.394,0.28432314]
[1772662532093,8.67055874,92.48,92.39,37.88288776]
[1772662532094,0.70020957,92.468,92.399,5.10909883]
[1772662532294,0.70020957,92.488,92.411,0.28432314]
[1772662534690,10.81233038,92.487,92.412,91.97939661]
[1772662534996,0.70020957,92.486,92.416,8.80293285]
[1772662536799,0.70020957,92.484,92.421,8.80293285]
[1772662538088,0.70020957,92.484,92.423,4.85873089]
[1772662538289,0.70020957,92.484,92.43,4.96693726]
[1772662539100,0.70020957,92.482,92.432,0.14216157]
[1772662540201,0.70020957,92.482,92.432,0.28432314]
[1772662541701,0.70020957,92.48,92.433,37.86526457]
[1772662544806,0.70020957,92.478,92.423,3.69383402]
[1772662546591,10.8130796,92.481,92.428,0.14216157]
[1772662546996,11.51328917,92.481,92.428,0.14216157]
[1772662547197,0.70020957,92.48,92.428,0.14216157]
[1772662548706,0.70020957,92.478,92.432,0.28432314]
[1772662550804,10.81349957,92.477,92.433,37.86526457]
[1772662551006,0.70020957,92.476,92.433,37.86526457]
[1772662552495,54.04396832,92.518,92.433,37.86526457]
[1772662552496,0.70020957,92.499,92.433,91.95849967]
[1772662552892,0.70020957,92.498,92.433,91.95849967]
[1772662553803,0.70020957,92.496,92.433,37.86526457]
[1772662555825,0.70020957,92.494,92.433,37.86526457]
[1772662557319,0.70020957,92.468,92.391,10.82356506]
[1772662557523,0.70020957,92.468,92.392,0.28432314]
[1772662558019,0.70020957,92.466,92.398,3.69383402]
[1772662558214,0.70020957,92.466,92.395,37.88083769]
[1772662558412,0.70020957,92.466,92.396,0.28432314]
[1772662558600,0.70020957,92.466,92.395,37.88083769]
[1772662558601,0.70020957,92.466,92.399,0.28432314]
[1772662561318,0.70020957,92.464,92.413,0.28432314]
[1772662562918,0.70020957,92.464,92.415,0.28432314]
[1772662563100,0.70020957,92.464,92.415,66.40909883]
[1772662563715,0.70020957,92.464,92.415,61.58432314]
[1772662564931,0.70020957,92.462,92.417,0.28432314]
[1772662566837,0.70020957,92.462,92.419,0.28432314]
[1772662567037,0.70020957,92.46,92.419,0.28432314]
[1772662569632,0.70020957,92.46,92.405,3.69383402]
[1772662569633,0.70020957,92.46,92.421,0.28432314]
[1772662571816,0.70020957,92.46,92.422,37.86977125]
[1772662572022,0.70020957,92.46,92.423,0.28432314]
[1772662574534,0.70020957,92.46,92.424,37.86895178]
[1772662576035,0.70020957,92.46,92.418,0.28432314]
[1772662577330,0.70020957,92.471,92.421,0.28432314]
[1772662577923,0.70020957,92.471,92.425,3.69383402]
[1772662578128,0.70020957,92.469,92.425,3.69383402]
[1772662578640,0.70020957,92.476,92.426,5.10909883]
[1772662578851,37.83538364,92.506,92.436,0.14216157]
[1772662579050,37.83538364,92.506,92.452,0.28432314]
[1772662579218,10.81010961,92.506,92.453,0.49770039]
[1772662580735,0.55117548,92.503,92.455,0.49318012]
[1772662583038,0.55117548,92.501,92.457,0.48876309]
[1772662584237,0.55117548,92.501,92.459,0.48659256]
[1772662584638,0.55117548,92.508,92.463,0.48444695]
[1772662586242,54.03003056,92.542,92.454,0.28432314]
[1772662586243,0.5496411,92.506,92.465,0.48022939]
[1772662586446,0.5496411,92.506,92.464,37.85256963]
[1772662586826,0.5496411,92.506,92.465,0.47815687]
[1772662588328,0.5496411,92.504,92.466,10.81478597]
[1772662590351,0.5496411,92.496,92.443,10.81747671]
[1772662590649,0.5496411,92.479,92.414,0.47010213]
[1772662590827,0.5496411,92.479,92.421,0.47010213]
[1772662591145,0.5496411,92.479,92.422,0.28432314]
[1772662591349,0.5496411,92.479,92.423,0.47010213]
[1772662592439,0.5496411,92.477,92.425,0.4662122]
[1772662594243,27.03263688,92.481,92.427,0.46430069]
[1772662594244,0.5496411,92.475,92.427,0.46430069]
[1772662594958,0.5496411,92.499,92.433,0.46241112]
[1772662596755,0.5496411,92.497,92.435,0.45869686]
[1772662598834,37.83947413,92.496,92.436,37.86403565]
[1772662599041,0.5496411,92.495,92.437,0.45506743]
[1772662599637,0.5496411,92.489,92.436,37.86403565]
[1772662600734,0.5496411,92.487,92.437,0.4515209]
[1772662600952,0.5496411,92.487,92.443,0.4515209]
[1772662601840,0.5496411,92.487,92.435,0.44977813]
[1772662602847,0.5496411,92.485,92.436,37.86403565]
[1772662603435,0.5496411,92.485,92.436,38.31038805]
[1772662603842,0.5496411,92.485,92.437,0.4463524]
[1772662604945,0.5496411,92.483,92.439,0.444669]
[1772662607240,0.5496411,92.481,92.441,0.44135996]
[1772662610162,0.5496411,92.481,92.443,0.43496691]
[1772662610348,0.55414013,92.479,92.443,0.43496691]
[1772662614488,0.55414013,92.479,92.437,0.42738004]
[1772662620060,0.55414013,92.479,92.439,0.42021898]
[1772662620672,96.37952511,92.499,92.443,0.53809533]
[1772662620969,43.2123308,92.567,92.438,91.9535256]
[1772662620970,10.80403638,92.558,92.47,3.69383402]
[1772662621171,10.80403638,92.558,92.459,3.69383402]
[1772662621172,10.80403638,92.558,92.483,0.53809533]
[1772662621472,37.81412734,92.558,92.483,0.53809533]
[1772662622074,0.28432314,92.555,92.485,0.53809533]
[1772662622572,0.28432314,92.549,92.485,0.53809533]
[1772662622778,0.55414013,92.548,92.485,0.53809533]
[1772662628682,0.55414013,92.546,92.493,0.53809533]
[1772662629769,0.55414013,92.544,92.495,0.53809533]
[1772662633773,0.55414013,92.542,92.497,0.53809533]
[1772662635988,0.55414013,92.54,92.499,0.53809533]
[1772662638903,0.5358648,92.538,92.5,10.81081081]
[1772662639486,0.5358648,92.538,92.497,0.52526882]
[1772662640689,0.5358648,92.536,92.483,0.52526882]
[1772662643297,0.5358648,92.534,92.485,0.52526882]
[1772662645901,0.49379406,92.528,92.468,0.49316673]
[1772662650003,0.49379406,92.526,92.47,0.49316673]
[1772662650805,0.49379406,92.526,92.474,0.49316673]
[1772662652604,0.49379406,92.524,92.476,0.49316673]
[1772662654505,0.49379406,92.522,92.478,0.49316673]
[1772662656596,0.49379406,92.52,92.48,0.49316673]
[1772662658001,0.49379406,92.518,92.482,0.49316673]
[1772662662907,0.49379406,92.516,92.483,10.81279802]
[1772662664301,0.49379406,92.514,92.483,0.49316673]
[1772662666913,0.49379406,92.512,92.485,0.49316673]
[1772662671721,0.49379406,92.512,92.459,0.28432314]
[1772662671722,37.82638767,92.528,92.487,0.52900853]
[1772662672023,10.80753933,92.528,92.487,0.52900853]
[1772662672210,0.52295965,92.527,92.487,0.52900853]
[1772662676025,0.52295965,92.525,92.488,10.81221347]
[1772662676930,0.52295965,92.525,92.488,11.341222]
[1772662677117,0.52295965,92.523,92.488,11.341222]
[1772662677703,0.52295965,92.523,92.488,0.52900853]
[1772662679129,0.52295965,92.521,92.476,0.52900853]
[1772662681326,0.52295965,92.519,92.478,0.52900853]
[1772662683120,0.52295965,92.517,92.48,0.52900853]
[1772662683843,0.52295965,92.517,92.466,0.52900853]
[1772662684924,0.52295965,92.517,92.438,10.81806183]
[1772662684925,0.52295965,92.489,92.438,10.81806183]
[1772662685128,3.69383402,92.513,92.438,10.81806183]
[1772662685129,0.52295965,92.479,92.438,10.81806183]
[1772662685328,0.52295965,92.479,92.438,11.34707036]
[1772662685541,0.52295965,92.479,92.432,0.52900853]
[1772662686351,0.28432314,92.5,92.434,0.52900853]
[1772662686657,0.52295965,92.499,92.434,0.52900853]
[1772662687344,0.52295965,92.497,92.436,0.52900853]
[1772662689356,0.52295965,92.495,92.438,0.52900853]
[1772662689733,0.52295965,92.495,92.444,0.52900853]
[1772662692554,0.52295965,92.493,92.446,0.52900853]
[1772662693431,0.52295965,92.493,92.445,37.86034939]
[1772662693432,0.52295965,92.517,92.452,0.28432314]
[1772662693748,0.52295965,92.517,92.453,0.52900853]
[1772662694834,0.52295965,92.515,92.458,0.52900853]
[1772662697349,0.52295965,92.515,92.457,3.69383402]
[1772662697350,0.52295965,92.513,92.46,0.52900853]
[1772662699754,0.47644025,92.511,92.462,0.52114712]
[1772662704054,0.47644025,92.511,92.461,37.85379781]
[1772662704055,0.47644025,92.509,92.464,0.52114712]
[1772662706870,0.51374486,92.507,92.466,0.48431559]
[1772662707050,0.51374486,92.499,92.453,10.81630666]
[1772662707451,0.51374486,92.499,92.454,0.48431559]
[1772662709965,0.51374486,92.497,92.455,10.81607268]
[1772662711970,0.51374486,92.489,92.444,0.48431559]
[1772662713164,0.51374486,92.487,92.445,11.30155827]
[1772662713477,0.51374486,92.487,92.445,10.81724268]
[1772662713775,0.51374486,92.487,92.402,43.28895921]
[1772662713776,0.51374486,92.479,92.434,10.81852997]
[1772662713952,0.51374486,92.469,92.434,10.81852997]
[1772662714557,0.51374486,92.469,92.435,0.48431559]
[1772662715277,10.81455206,92.468,92.437,0.48431559]
[1772662715483,0.51374486,92.467,92.437,0.48431559]
[1772662718864,0.51374486,92.465,92.439,0.48431559]
[1772662722986,0.51374486,92.463,92.439,0.48431559]
[1772662725081,0.51374486,92.461,92.439,0.48431559]
[1772662725491,0.51374486,92.461,92.441,0.48431559]
[1772662726974,0.51374486,92.475,92.441,0.48431559]
[1772662727179,0.51374486,92.473,92.443,0.48431559]
[1772662729893,0.46484533,92.471,92.445,0.4654366]
[1772662730601,0.46484533,92.478,92.445,0.4654366]
[1772662732101,0.46484533,92.476,92.447,0.4654366]
[1772662733479,96.37952511,92.487,92.447,0.4654366]
[1772662733793,0.46484533,92.485,92.447,0.4654366]
[1772662733992,10.81338264,92.478,92.419,0.4654366]
[1772662734181,0.46484533,92.477,92.419,0.4654366]
[1772662734386,0.46484533,92.469,92.421,0.4654366]
[1772662734781,0.46484533,92.459,92.416,10.82062422]
[1772662735388,0.46484533,92.439,92.396,0.4654366]
[1772662735586,0.46484533,92.439,92.334,43.32083693]
[1772662735587,0.46484533,92.438,92.381,0.4654366]
[1772662736401,0.46484533,92.436,92.384,0.4654366]
[1772662736594,0.46484533,92.428,92.382,10.82461951]
[1772662737116,0.46484533,92.428,92.383,0.4654366]
[1772662738391,3.69383402,92.451,92.385,0.4654366]
[1772662738392,0.46484533,92.426,92.385,0.4654366]
[1772662740503,0.46484533,92.424,92.387,0.4654366]
[1772662743621,0.46484533,92.422,92.387,0.4654366]
[1772662743817,0.46484533,92.422,92.389,0.4654366]
[1772662744713,0.46484533,92.422,92.381,0.4654366]
[1772662745918,43.26732917,92.449,92.383,0.4654366]
[1772662745919,0.46484533,92.42,92.383,0.4654366]
[1772662750322,0.46484533,92.427,92.385,0.4654366]
[1772662750625,96.37952511,92.434,92.388,0.4654366]
[1772662751801,96.37952511,92.434,92.39,0.46543661]
[1772662752006,0.46484533,92.433,92.39,0.46543661]
[1772662754915,0.46484533,92.432,92.392,0.4654366]
[1772662761333,0.46238461,92.43,92.393,37.88165769]
[1772662761511,0.46238461,92.419,92.39,1e-08]
[1772662761827,0.46238461,92.43,92.391,0.47211207]
[1772662763227,0.46238461,92.436,92.392,37.8820677]
[1772662763414,0.46238461,92.436,92.393,0.47211207]
[1772662765829,0.47727959,92.434,92.395,0.50906015]
[1772662767132,0.47727959,92.434,92.397,0.50906015]
[1772662768130,0.47727959,92.432,92.397,0.50906015]
[1772662769134,0.47727959,92.43,92.399,0.50906015]
[1772662769533,0.47727959,92.425,92.39,1e-08]
[1772662769729,0.47727959,92.419,92.39,1e-08]
[1772662769932,0.47727959,92.409,92.361,0.50906015]
[1772662770133,0.47727959,92.409,92.367,10.82632354]
[1772662770339,0.47727959,92.409,92.361,0.50906015]
[1772662770830,0.47727959,92.409,92.365,10.82650931]
[1772662771025,0.47727959,92.399,92.353,0.50906015]
[1772662771232,0.47727959,92.397,92.36,11.02708975]
[1772662771424,0.47727959,92.397,92.361,0.50906015]
[1772662773422,4.04410065,92.41,92.361,0.50906015]
[1772662773423,0.47727959,92.395,92.361,0.50906015]
[1772662774544,0.47727959,92.393,92.361,0.50906015]
[1772662775526,0.47727959,92.393,92.363,0.50906015]
[1772662776741,0.47727959,92.391,92.365,0.50906015]
[1772662777526,0.47727959,92.398,92.365,0.50906015]
[1772662777718,0.47727959,92.414,92.365,0.50906015]
[1772662782229,0.47727959,92.414,92.36,0.2]
[1772662782230,0.47727959,92.412,92.367,0.50906015]
[1772662783140,0.47727959,92.41,92.369,0.50906015]
[1772662788239,0.47727959,92.408,92.371,0.50906015]
[1772662791238,0.49890814,92.425,92.373,0.47260243]
[1772662791440,0.49890814,92.425,92.377,0.47260243]
[1772662793359,0.49890814,92.423,92.379,0.47260243]
[1772662795458,0.49890814,92.421,92.381,0.47260243]
[1772662798071,0.49890814,92.419,92.383,0.47260243]
[1772662799765,0.49890814,92.417,92.385,0.47260243]
[1772662801569,96.37952511,92.43,92.385,0.47260243]
[1772662801570,0.49890814,92.429,92.385,0.47260243]
[1772662801776,27.04631753,92.435,92.389,0.47260243]
[1772662801777,10.81871325,92.433,92.389,0.47260243]
[1772662802068,11.31762139,92.433,92.389,0.47260243]
[1772662802452,0.49890814,92.432,92.389,0.47260243]
[1772662802873,0.49890814,92.43,92.391,0.47260243]
[1772662803979,0.49890814,92.43,92.393,0.47260243]
[1772662804359,0.49890814,92.436,92.397,0.47260243]
[1772662804973,0.49890814,92.434,92.397,0.47260243]
[1772662805871,0.49890814,92.434,92.392,37.8820677]
[1772662805872,0.49890814,92.434,92.399,0.47260243]
[1772662806082,0.49890814,92.433,92.399,0.47260243]
[1772662807881,0.49890814,92.451,92.405,0.47260243]
[1772662808079,0.49890814,92.451,92.407,0.47260243]
[1772662808259,96.37952511,92.468,92.407,0.47260243]
[1772662808260,0.49890814,92.457,92.417,0.47260243]
[1772662811879,0.49890814,92.457,92.419,0.47260243]
[1772662814484,0.49890814,92.457,92.421,0.47260243]
[1772662816083,0.49890814,92.457,92.407,3.69383402]
[1772662816084,27.03076516,92.488,92.424,0.28432314]
[1772662816296,0.49890814,92.467,92.427,0.47260243]
[1772662818295,17.62375855,92.472,92.406,147.87383994]
[1772662818296,0.49890814,92.465,92.429,0.47260243]
[1772662818592,0.49890814,92.465,92.428,10.81923226]
[1772662823884,0.47633237,92.463,92.421,0.48957231]
[1772662824887,0.47633237,92.461,92.414,0.48957231]
[1772662825902,0.47111567,92.459,92.416,0.50484223]
[1772662826801,10.81572173,92.458,92.417,10.82052003]
[1772662826982,0.47111567,92.457,92.418,0.50484223]
[1772662828982,0.47111567,92.457,92.42,0.50484223]
[1772662830789,0.47111567,92.455,92.41,10.82133968]
[1772662830993,0.47111567,92.453,92.41,10.82133968]
[1772662833008,0.47111567,92.451,92.41,10.82133968]
[1772662834308,27.03988924,92.456,92.41,10.82133968]
[1772662834309,10.81665765,92.45,92.41,10.82133968]
[1772662834487,0.47111567,92.449,92.41,10.82133968]
[1772662834995,0.47111567,92.449,92.41,11.32618191]
[1772662835200,0.47111567,92.449,92.411,0.50484223]
[1772662836809,0.47111567,92.449,92.413,0.50484223]
[1772662837304,0.47111567,92.447,92.413,0.50484223]
[1772662839107,0.47111567,92.447,92.415,0.50484223]
[1772662840204,0.47111567,92.445,92.415,0.50484223]
[1772662842409,0.47111567,92.445,92.416,10.82063711]
[1772662844913,0.47111567,92.443,92.416,10.82063711]
[1772662846898,0.47111567,92.441,92.407,0.50484223]
[1772662848903,0.47111567,92.441,92.408,10.82157388]
[1772662849106,0.47111567,92.441,92.409,0.46935039]
[1772662853105,0.45384005,92.439,92.41,11.29069007]
[1772662853300,0.45384005,92.439,92.41,10.82133968]
[1772662854726,0.45384005,92.439,92.399,10.82262795]
[1772662855600,37.86321642,92.438,92.392,27.05853381]
[1772662855795,0.45384005,92.437,92.392,27.05853381]
[1772662856004,0.45384005,92.437,92.393,0.46935039]
[1772662861730,0.45384005,92.435,92.395,0.46935039]
[1772662862026,0.45384005,92.435,92.397,0.46935039]
[1772662864516,0.45384005,92.435,92.399,0.46935039]
[1772662864836,10.8142012,92.471,92.416,0.46935039]
[1772662865120,37.84970422,92.471,92.416,0.46935039]
[1772662866518,4.32520842,92.47,92.399,0.46935039]
[1772662866828,0.39827282,92.461,92.401,0.46935039]
[1772662868104,0.39820341,92.459,92.401,0.46935039]
[1772662869021,0.39813479,92.457,92.403,0.46935039]
[1772662870724,0.39799991,92.455,92.404,11.29139272]
[1772662870926,0.39799991,92.455,92.405,0.46935039]
[1772662875434,0.39799991,92.455,92.407,0.46935039]
[1772662875435,0.39773932,92.453,92.407,0.46935039]
[1772662876523,0.39761348,92.451,92.409,0.46935039]
[1772662877435,0.39761348,92.451,92.408,10.82157388]
[1772662877628,0.39755164,92.439,92.363,0.46935039]
[1772662878016,0.39755164,92.439,92.368,0.28432314]
[1772662878223,0.39755164,92.439,92.377,0.46935039]
[1772662878821,4.04349391,92.44,92.379,0.48123857]
[1772662878822,0.39743008,92.437,92.379,0.48123857]
[1772662881356,0.39731129,92.435,92.381,0.48123857]
[1772662884341,0.39713818,92.433,92.383,0.48123857]
[1772662890455,0.39675685,92.431,92.385,0.49274142]
[1772662893957,0.3965524,92.429,92.387,0.49274142]
[1772662896260,0.39645366,92.427,92.389,0.49274142]
[1772662897361,0.39640514,92.425,92.391,0.49274142]
[1772662899351,0.39630977,92.423,92.391,0.49274142]
[1772662902363,0.39617077,92.421,92.391,0.49274142]
[1772662902664,0.3961255,92.447,92.397,0.49274142]
[1772662905570,0.39603652,92.445,92.399,0.49274142]
[1772662906668,0.39603652,92.445,92.364,4.82477569]
[1772662906669,0.39594956,92.437,92.394,0.49274142]
[1772662906876,0.39594956,92.431,92.394,0.49274142]
[1772662908569,0.39582284,92.445,92.396,0.45262308]
[1772662908869,0.39582284,92.467,92.412,0.45262308]
[1772662909072,0.39582284,92.467,92.416,0.45262308]
[1772662910574,0.39574076,92.465,92.418,0.45262308]
[1772662913460,0.39566056,92.463,92.42,0.45262308]
[1772662915463,96.37952511,92.471,92.422,0.45262308]
[1772662915660,10.81313651,92.481,92.426,0.45262308]
[1772662915970,10.8135866,92.477,92.426,0.45262308]
[1772662916372,0.39554369,92.474,92.426,0.45262308]
[1772662916578,3.69383402,92.507,92.426,0.45262308]
[1772662916579,0.39550562,92.47,92.426,0.45262308]
[1772662918561,7.20500536,92.472,92.428,0.45262308]
[1772662919177,0.39543079,92.507,92.432,0.45262308]
[1772662919388,0.39543079,92.506,92.446,0.45262308]
[1772662920666,0.59535767,92.51,92.452,0.45262308]
[1772662920973,0.59535767,92.51,92.456,0.45262308]
[1772662920974,0.39535767,92.509,92.456,0.45262308]
[1772662921286,0.39535767,92.508,92.456,0.45262308]
[1772662922772,0.39528622,92.506,92.458,0.45262308]
[1772662926095,0.39518209,92.504,92.46,0.45262308]
[1772662927189,10.8104602,92.503,92.461,37.85379781]
[1772662927393,10.8104602,92.503,92.462,0.45262308]
[1772662927993,0.39511465,92.502,92.462,0.45262308]
[1772662929189,10.81069393,92.501,92.463,10.81513686]
[1772662929389,0.39508151,92.5,92.464,0.45262308]
[1772662929981,0.39504875,92.489,92.438,0.45262308]
[1772662930179,0.39504875,92.489,92.439,0.45262308]
[1772662930674,0.39501637,92.508,92.457,0.45262308]
[1772662931686,10.80999275,92.507,92.459,0.45262308]
[1772662932798,0.39495272,92.506,92.459,0.45262308]
[1772662933500,0.39492144,92.489,92.446,0.45262308]
[1772662933800,0.39492144,92.487,92.446,0.45262308]
[1772662934289,0.39492144,92.487,92.428,0.45262308]
[1772662934491,0.39492144,92.487,92.429,0.45262308]
[1772662935481,4.04349391,92.48,92.429,0.45262308]
[1772662935681,0.39485995,92.477,92.43,10.81899816]
[1772662935882,0.39485995,92.477,92.431,0.45262308]
[1772662936687,0.39485995,92.477,92.43,10.81899816]
[1772662937002,0.39482974,92.469,92.407,0.45262308]
[1772662937584,0.39479987,92.467,92.409,0.45262308]
[1772662939199,0.39474116,92.459,92.409,0.45262308]
[1772662939504,0.39471231,92.453,92.397,0.49792021]
[1772662939796,0.39471231,92.437,92.397,0.49792021]
[1772662940001,0.39471231,92.437,92.399,0.49792021]
[1772662940382,0.39471231,92.475,92.399,0.49792021]
[1772662940801,0.39468379,92.471,92.407,0.49792021]
[1772662942005,0.3946556,92.469,92.409,0.49792021]
[1772662944705,0.3946556,92.469,92.393,43.29302779]
[1772662944706,11.20912501,92.468,92.411,0.49792021]
[1772662945581,0.39451943,92.467,92.411,0.49792021]
[1772662947002,10.81478597,92.466,92.412,37.87386919]
[1772662947304,10.81478597,92.466,92.413,0.46764086]
[1772662947515,0.39446712,92.475,92.418,0.28432314]
[1772662947703,0.39446712,92.475,92.412,91.97939661]
[1772662947704,0.39446712,92.498,92.435,0.46764086]
[1772662947887,0.39446712,92.498,92.437,0.46764086]
[1772662949085,10.81116144,92.497,92.438,37.86321642]
[1772662949309,0.39444142,92.496,92.439,0.46764086]
[1772662952615,0.39434153,92.494,92.441,0.46764086]
[1772662954211,10.81139521,92.495,92.443,0.46764086]
[1772662954414,10.8108247,92.5,92.447,0.46764086]
[1772662954616,0.39429329,92.499,92.447,0.46764086]
[1772662955310,10.81104456,92.498,92.448,37.85912079]
[1772662955510,10.81104456,92.498,92.449,0.46764086]
[1772662957016,6.92657963,92.501,92.457,0.46764086]
[1772662957495,6.92657963,92.501,92.459,0.46764086]
[1772662959909,6.92657963,92.501,92.461,0.46764086]
[1772662961418,0.2,92.51,92.462,0.46764086]
[1772662961715,0.2,92.51,92.466,0.46764086]
[1772662962410,0.2,92.51,92.468,0.46764086]
[1772662964607,1e-08,92.51,92.476,0.46764086]
[1772662966598,1e-08,92.51,92.481,0.14216157]
[1772662966803,1e-08,92.51,92.486,0.46764086]
[1772662967904,1e-08,92.51,92.488,0.46764086]
[1772662968104,1e-08,92.51,92.496,0.46764086]
[1772662970525,1e-08,92.51,92.498,0.45304949]
[1772662973114,1e-08,92.51,92.5,0.45304949]
[1772662973429,0.2,92.54,92.5,0.45304949]
[1772662973826,11.00622238,92.54,92.5,0.45304949]
[1772662975413,0.2,92.54,92.502,0.50082856]
[1772662977437,0.2,92.56,92.507,0.50082856]
[1772662977438,10.80398444,92.559,92.507,0.50082856]
[1772662978734,0.2,92.56,92.507,0.50082856]
[1772662979229,10.80451578,92.554,92.507,0.50082856]
[1772662979617,10.80451578,92.554,92.509,0.50082856]
[1772662980616,0.2,92.56,92.509,0.50082856]
[1772662980825,1e-08,92.55,92.517,0.50082856]
[1772662981017,11.00263623,92.57,92.521,0.50082856]
[1772662981018,0.2,92.57,92.521,0.50082856]
[1772662981240,0.2,92.57,92.527,0.50082856]
[1772662981747,0.2,92.57,92.529,0.50082856]